bitfinex/quotes_BTCUSD_20250326
["timestamp","ask_amount","ask_price","bid_price","bid_amount"]
[1742952783626,0.4401746,87985.0,87984.0,0.37595556]
[1742952787655,0.6796896,87985.0,87984.0,0.37595556]
[1742952788259,0.6796896,87985.0,87984.0,0.37195556]
[1742952788461,0.68116999,87985.0,87984.0,0.36795556]
[1742952788807,0.79542763,87985.0,87984.0,0.36895556]
[1742952788999,0.79542763,87985.0,87984.0,0.36995556]
[1742952789138,0.79542763,87985.0,87984.0,0.36895556]
[1742952789364,0.79542763,87985.0,87984.0,0.001]
[1742952789546,0.79542763,87985.0,87984.0,0.002]
[1742952789740,0.68116999,87985.0,87984.0,0.002]
[1742952790008,0.68116999,87985.0,87984.0,0.001]
[1742952790657,0.69571084,87985.0,87984.0,0.001]
[1742952790860,0.538741,87961.0,87960.0,0.36795556]
[1742952791073,0.72593139,87961.0,87960.0,0.36795556]
[1742952791260,0.72593139,87961.0,87959.0,0.00046191]
[1742952791261,0.31284839,87960.0,87959.0,0.00046191]
[1742952791460,0.75717339,87960.0,87959.0,0.00046191]
[1742952791887,0.87143103,87960.0,87959.0,0.00046191]
[1742952792085,0.75717339,87960.0,87959.0,0.00046191]
[1742952792614,0.75717339,87960.0,87959.0,0.00246191]
[1742952793150,0.75717339,87960.0,87959.0,0.00046191]
[1742952793908,0.72751639,87960.0,87959.0,0.00046191]
[1742952795155,0.85887639,87960.0,87959.0,0.00046191]
[1742952795328,0.97313403,87960.0,87959.0,0.00046191]
[1742952796160,0.55846603,87960.0,87959.0,0.00046191]
[1742952796346,1.90376039,87960.0,87959.0,0.00046191]
[1742952796683,1.63935839,87960.0,87959.0,0.00046191]
[1742952797069,0.98431539,87960.0,87959.0,0.00046191]
[1742952797218,0.78613239,87960.0,87959.0,0.00046191]
[1742952797422,0.59247439,87960.0,87959.0,0.00046191]
[1742952797683,0.44476839,87960.0,87959.0,0.00046191]
[1742952797824,0.01284839,87960.0,87959.0,0.00046191]
[1742952798440,0.73648239,87960.0,87959.0,0.00046191]
[1742952798862,0.73648239,87960.0,87959.0,0.00246191]
[1742952799290,0.73648239,87960.0,87959.0,0.00446191]
[1742952799876,0.75428667,87960.0,87959.0,0.00446191]
[1742952801259,0.74048967,87960.0,87959.0,0.00446191]
[1742952801463,0.44482567,87960.0,87959.0,0.00446191]
[1742952801668,0.011368,87966.0,87959.0,0.00446191]
[1742952801882,0.238744,87960.0,87959.0,0.00446191]
[1742952802600,0.238744,87960.0,87959.0,0.00246191]
[1742952804338,1.71777503,87960.0,87959.0,0.00246191]
[1742952804560,1.75120603,87960.0,87959.0,0.00246191]
[1742952804737,1.56847303,87960.0,87959.0,0.00246191]
[1742952805169,1.56847303,87960.0,87959.0,0.00446191]
[1742952805575,1.56847303,87960.0,87959.0,0.00246191]
[1742952805755,1.56699264,87960.0,87959.0,0.00046191]
[1742952805916,1.56847303,87960.0,87959.0,0.00046191]
[1742952806946,0.65448203,87960.0,87959.0,0.00046191]
[1742952807581,2.26594503,87960.0,87959.0,0.00046191]
[1742952807756,2.18048803,87960.0,87959.0,0.00046191]
[1742952807923,1.28118539,87960.0,87959.0,0.00046191]
[1742952809459,1.29899021,87960.0,87959.0,0.00046191]
[1742952810289,1.24188721,87960.0,87959.0,0.00046191]
[1742952812313,1.22408239,87960.0,87959.0,0.00046191]
[1742952812728,1.18239239,87960.0,87959.0,0.00046191]
[1742952814601,1.29665003,87960.0,87959.0,0.00046191]
[1742952815106,1.18239239,87960.0,87959.0,0.00046191]
[1742952815512,1.2001972,87960.0,87959.0,0.00046191]
[1742952816348,0.6623642,87960.0,87959.0,0.00046191]
[1742952816544,0.5580292,87960.0,87959.0,0.00046191]
[1742952816739,0.7527332,87960.0,87959.0,0.00046191]
[1742952819699,0.75125281,87960.0,87959.0,0.00046191]
[1742952820514,0.55654881,87960.0,87959.0,0.00046191]
[1742952821685,0.54518081,87960.0,87959.0,0.36841747]
[1742952821885,0.011367,87972.0,87964.0,0.0787]
[1742952822089,0.227345,87972.0,87964.0,0.0787]
[1742952822263,0.527349,87971.0,87965.0,0.227361]
[1742952822463,0.3,87968.0,87964.0,0.306064]
[1742952823066,0.3,87968.0,87964.0,0.0797]
[1742952823067,0.227359,87967.0,87964.0,0.0797]
[1742952823294,0.3,87966.0,87964.0,0.0797]
[1742952823485,0.3,87966.0,87964.0,0.0787]
[1742952824265,0.527362,87966.0,87964.0,0.0787]
[1742952824667,0.3,87966.0,87964.0,0.0817]
[1742952825388,0.3,87966.0,87964.0,0.0837]
[1742952826357,0.527363,87965.0,87964.0,0.0837]
[1742952826559,0.3,87965.0,87964.0,0.0837]
[1742952827132,0.3,87965.0,87964.0,0.45165556]
[1742952827341,0.3,87965.0,87964.0,0.44865556]
[1742952827555,0.3,87965.0,87964.0,0.45165556]
[1742952828091,0.3,87965.0,87964.0,0.37095556]
[1742952828092,0.311368,87965.0,87964.0,0.37095556]
[1742952828297,0.8767082,87965.0,87964.0,0.37295556]
[1742952828500,0.89599183,87965.0,87964.0,0.37295556]
[1742952828680,0.63648363,87965.0,87964.0,0.37295556]
[1742952828882,0.33065163,87965.0,87964.0,0.37295556]
[1742952829289,0.52777463,87965.0,87964.0,0.37295556]
[1742952829518,0.52777463,87965.0,87964.0,0.36795556]
[1742952829740,0.45784963,87965.0,87964.0,0.36795556]
[1742952829973,0.45784963,87965.0,87964.0,0.36995556]
[1742952830855,0.45636924,87965.0,87964.0,0.36995556]
[1742952831083,0.45784963,87965.0,87964.0,0.36995556]
[1742952832481,0.44004639,87965.0,87964.0,0.36995556]
[1742952833123,0.44004639,87965.0,87964.0,0.002]
[1742952836932,0.45785045,87965.0,87964.0,0.002]
[1742952837853,0.33065245,87965.0,87964.0,0.002]
[1742952839262,0.32917206,87965.0,87964.0,0.002]
[1742952839462,0.33065245,87965.0,87964.0,0.002]
[1742952840288,0.33065245,87965.0,87964.0,0.0023392]
[1742952842448,0.311368,87965.0,87964.0,0.0023392]
[1742952844367,0.3,87965.0,87964.0,0.0023392]
[1742952844778,0.238731,87965.0,87964.0,0.37029476]
[1742952844987,0.538731,87965.0,87964.0,0.37029476]
[1742952845746,0.538731,87965.0,87964.0,0.36929476]
[1742952846140,0.538731,87965.0,87964.0,0.37129476]
[1742952846359,0.3,87965.0,87964.0,0.59665976]
[1742952846616,0.3,87965.0,87964.0,0.36929476]
[1742952846818,0.3,87965.0,87964.0,0.37029476]
[1742952847226,0.3,87965.0,87964.0,0.37229476]
[1742952847630,0.527363,87965.0,87964.0,0.37029476]
[1742952847791,0.3,87965.0,87964.0,0.37029476]
[1742952848172,0.3,87965.0,87964.0,0.37229476]
[1742952852873,0.311368,87965.0,87964.0,0.37229476]
[1742952856421,1.72099203,87965.0,87964.0,0.0043392]
[1742952857479,1.72099203,87965.0,87964.0,0.0023392]
[1742952858278,1.72099203,87965.0,87964.0,0.0003392]
[1742952862765,1.60673439,87965.0,87964.0,0.0003392]
[1742952865359,1.62453959,87965.0,87964.0,0.0003392]
[1742952867163,0.45735359,87965.0,87964.0,0.0003392]
[1742952867310,2.87919759,87965.0,87964.0,0.0003392]
[1742952869147,1.31198759,87965.0,87964.0,0.0003392]
[1742952872414,0.69651159,87965.0,87964.0,0.0003392]
[1742952872622,0.58462559,87965.0,87964.0,0.0003392]
[1742952875312,0.56682039,87965.0,87964.0,0.0003392]
[1742952877567,0.61401439,87965.0,87964.0,0.0003392]
[1742952878336,0.63181906,87965.0,87964.0,0.0003392]
[1742952878736,0.77520906,87965.0,87964.0,0.0003392]
[1742952878966,0.90648906,87965.0,87964.0,0.0003392]
[1742952879137,1.20648906,87965.0,87964.0,0.0003392]
[1742952879973,1.3207467,87965.0,87964.0,0.0003392]
[1742952880228,1.13756606,87965.0,87964.0,0.0003392]
[1742952880435,1.12156306,87965.0,87964.0,0.0003392]
[1742952880778,1.12008267,87965.0,87964.0,0.0003392]
[1742952880982,1.12156306,87965.0,87964.0,0.0003392]
[1742952883615,1.10375839,87965.0,87964.0,0.0003392]
[1742952884223,0.97247839,87965.0,87964.0,0.0003392]
[1742952884437,1.10347839,87965.0,87964.0,0.0003392]
[1742952887953,1.12128274,87965.0,87964.0,0.0003392]
[1742952888405,0.93236374,87965.0,87964.0,0.0003392]
[1742952890106,0.90686074,87965.0,87964.0,0.0003392]
[1742952891570,0.46165274,87965.0,87964.0,0.0003392]
[1742952891758,0.91411174,87965.0,87964.0,0.0003392]
[1742952892064,1.02836938,87965.0,87964.0,0.0003392]
[1742952892267,1.01056503,87965.0,87964.0,0.0003392]
[1742952892709,0.89630739,87965.0,87964.0,0.0003392]
[1742952896829,0.91411172,87965.0,87964.0,0.0003392]
[1742952898000,0.82344072,87965.0,87964.0,0.0003392]
[1742952903278,0.80563639,87965.0,87964.0,0.0003392]
[1742952906278,0.82344063,87965.0,87964.0,0.0003392]
[1742952907195,0.46165263,87965.0,87964.0,0.0003392]
[1742952907329,1.03623927,87965.0,87964.0,0.0003392]
[1742952907937,0.98857427,87965.0,87964.0,0.0003392]
[1742952908605,0.76961863,87965.0,87964.0,0.0003392]
[1742952910570,0.33065263,87965.0,87964.0,0.0003392]
[1742952910786,0.46069263,87965.0,87964.0,0.0003392]
[1742952912045,0.31780424,87965.0,87964.0,0.0003392]
[1742952912253,0.011368,87965.0,87964.0,0.0003392]
[1742952912473,0.05449287,87965.0,87964.0,0.0003392]
[1742952912819,1.2645619,87965.0,87964.0,0.0013392]
[1742952913261,1.224279,87965.0,87964.0,0.0003392]
[1742952913490,1.224279,87965.0,87964.0,0.0033392]
[1742952913954,1.224279,87965.0,87964.0,0.0053392]
[1742952915447,1.24208278,87965.0,87964.0,0.0053392]
[1742952923045,0.32917178,87965.0,87964.0,0.0053392]
[1742952923458,1.26115278,87965.0,87964.0,0.0053392]
[1742952923816,1.08468978,87965.0,87964.0,0.0053392]
[1742952924226,0.70565478,87965.0,87964.0,0.0053392]
[1742952924444,0.65441978,87965.0,87964.0,0.0053392]
[1742952924644,0.52461978,87965.0,87964.0,0.0053392]
[1742952924843,0.65457978,87965.0,87964.0,0.0053392]
[1742952926186,0.636776,87965.0,87964.0,0.0053392]
[1742952928233,0.75103364,87965.0,87964.0,0.0053392]
[1742952928434,0.636776,87965.0,87964.0,0.0053392]
[1742952929278,0.6545795,87965.0,87964.0,0.0053392]
[1742952929956,0.75370074,87965.0,87964.0,0.0053392]
[1742952930168,0.75370074,87965.0,87964.0,2e-07]
[1742952930384,0.39912124,87951.0,87950.0,1e-07]
[1742952930648,0.41049024,87951.0,87950.0,1e-07]
[1742952931263,0.4282974,87951.0,87950.0,1e-07]
[1742952935369,0.41049024,87951.0,87950.0,1e-07]
[1742952935592,0.41349024,87951.0,87950.0,1e-07]
[1742952935791,0.45531138,87951.0,87950.0,1e-07]
[1742952938360,0.47311876,87951.0,87950.0,1e-07]
[1742952942207,0.45531138,87951.0,87950.0,1e-07]
[1742952943414,0.68269824,87948.0,87947.0,6.2e-07]
[1742952943623,0.81245824,87948.0,87947.0,4.155e-05]
[1742952944816,0.85229642,87948.0,87947.0,4.155e-05]
[1742952945105,5.07146442,87948.0,87947.0,4.155e-05]
[1742952945316,4.47064011,87948.0,87947.0,4.155e-05]
[1742952945649,4.43660311,87948.0,87947.0,4.155e-05]
[1742952946211,4.39778197,87948.0,87947.0,4.155e-05]
[1742952951681,5.82123497,87948.0,87947.0,4.155e-05]
[1742952951916,5.83426797,87948.0,87947.0,4.155e-05]
[1742952952320,5.67573324,87948.0,87947.0,4.155e-05]
[1742952952723,5.34306924,87948.0,87947.0,4.155e-05]
[1742952952928,5.45732688,87948.0,87947.0,4.155e-05]
[1742952953126,0.538793,87942.0,87941.0,5.5e-07]
[1742952953404,0.63371424,87942.0,87941.0,5.5e-07]
[1742952954217,0.63471424,87942.0,87941.0,5.5e-07]
[1742952954421,0.66327371,87942.0,87941.0,5.5e-07]
[1742952955387,0.68108425,87942.0,87941.0,5.5e-07]
[1742952957442,0.71692243,87942.0,87941.0,5.5e-07]
[1742952957642,0.71692243,87942.0,87941.0,9.5e-07]
[1742952957978,0.68108425,87942.0,87941.0,9.5e-07]
[1742952958589,0.65352478,87942.0,87941.0,9.5e-07]
[1742952959107,0.54029739,87933.0,87932.0,1.5e-07]
[1742952959315,0.55483824,87933.0,87932.0,1.5e-07]
[1742952959712,0.57264928,87933.0,87932.0,1.5e-07]
[1742952960562,0.80815661,87933.0,87932.0,0.00200015]
[1742952960738,0.00148039,87912.0,87911.0,0.002]
[1742952960938,3.16542639,87912.0,87911.0,0.002]
[1742952961139,3.20808739,87912.0,87911.0,0.00840874]
[1742952961344,2.60637539,87912.0,87911.0,0.002]
[1742952961547,1.00699349,87912.0,87911.0,0.002]
[1742952962199,0.68864849,87912.0,87911.0,0.002]
[1742952962406,1.17380039,87912.0,87911.0,0.004]
[1742952963060,1.17380039,87912.0,87911.0,0.008]
[1742952963502,1.20963857,87912.0,87911.0,0.008]
[1742952963668,1.20963857,87912.0,87911.0,0.004]
[1742952963876,0.839214,87912.0,87911.0,0.082]
[1742952964087,0.84069439,87912.0,87911.0,0.082]
[1742952964969,0.839214,87912.0,87911.0,0.082]
[1742952965501,0.68391057,87912.0,87911.0,0.082]
[1742952965681,0.67189657,87912.0,87911.0,0.082]
[1742952965881,0.55668657,87912.0,87911.0,0.082]
[1742952966107,0.55668657,87912.0,87911.0,0.1278]
[1742952966441,0.55668657,87912.0,87911.0,0.13427307]
[1742952966604,0.55668657,87912.0,87911.0,0.1278]
[1742952967014,0.01781157,87912.0,87911.0,0.355302]
[1742952967217,0.01781157,87912.0,87911.0,0.37315007]
[1742952967543,0.01781157,87912.0,87911.0,0.13427307]
[1742952970864,0.01781157,87912.0,87911.0,0.14564807]
[1742952971045,0.01781157,87912.0,87911.0,0.14598747]
[1742952971245,0.01781157,87912.0,87911.0,0.14398747]
[1742952971441,0.01781157,87912.0,87911.0,0.14598747]
[1742952971834,0.3,87918.0,87917.0,0.137474]
[1742952972025,0.30011611,87918.0,87917.0,0.14389873]
[1742952972233,0.00011611,87918.0,87917.0,0.89624337]
[1742952973118,0.00011611,87918.0,87917.0,0.89824337]
[1742952973641,0.00011611,87918.0,87917.0,0.89624337]
[1742952973838,0.00011611,87918.0,87917.0,0.90124337]
[1742952974042,0.00011611,87918.0,87917.0,0.90324337]
[1742952974442,0.00011611,87918.0,87917.0,0.90124337]
[1742952974865,0.00011611,87918.0,87917.0,0.90524337]
[1742952981262,0.00011611,87918.0,87917.0,0.98364623]
[1742952982008,0.00011611,87918.0,87917.0,0.90524337]
[1742952982634,0.01149011,87918.0,87917.0,0.55212473]
[1742952982804,0.71180411,87918.0,87917.0,0.42602473]
[1742952983022,0.81333075,87918.0,87917.0,0.42602473]
[1742952983228,0.79620075,87918.0,87917.0,0.42602473]
[1742952983546,0.78209475,87918.0,87917.0,0.42602473]
[1742952983753,0.42574775,87918.0,87917.0,0.42602473]
[1742952983993,0.31149011,87918.0,87917.0,0.42636413]
[1742952984199,0.68384111,87918.0,87917.0,0.01576413]
[1742952984375,0.68384111,87918.0,87917.0,0.0093394]
[1742952985236,0.68384111,87918.0,87917.0,0.0003394]
[1742952985447,0.81591059,87918.0,87917.0,0.0063394]
[1742952985633,0.81739098,87918.0,87917.0,0.0063394]
[1742952985790,0.81739098,87918.0,87917.0,0.0033394]
[1742952986003,0.81739098,87918.0,87917.0,0.0003394]
[1742952986209,0.81739098,87918.0,87917.0,0.0023394]
[1742952986409,0.81739098,87918.0,87917.0,0.0033394]
[1742952986780,0.81739098,87918.0,87917.0,0.0003394]
[1742952987892,0.81739098,87918.0,87917.0,0.0013394]
[1742952988095,0.81739098,87918.0,87917.0,0.0003394]
[1742952991930,0.70313334,87918.0,87917.0,0.0003394]
[1742952994790,0.33078234,87918.0,87917.0,0.0003394]
[1742952994923,2.53352334,87918.0,87917.0,0.0003394]
[1742952995125,2.44379334,87918.0,87917.0,0.0003394]
[1742952995338,2.4259815,87918.0,87917.0,0.0003394]
[1742952996359,2.61713914,87918.0,87917.0,0.0003394]
[1742952998016,2.2299125,87918.0,87917.0,0.0003394]
[1742952998356,2.24772612,87918.0,87917.0,0.0003394]
[1742953002445,2.2299125,87918.0,87917.0,0.0003394]
[1742953002933,2.1961255,87918.0,87917.0,0.0003394]
[1742953003709,1.3874055,87918.0,87917.0,0.0003394]
[1742953004053,1.3483175,87918.0,87917.0,0.0003394]
[1742953005246,1.36613102,87918.0,87917.0,0.0003394]
[1742953005506,0.40768402,87918.0,87917.0,0.0003394]
[1742953005701,1.87867602,87918.0,87917.0,0.0003394]
[1742953005848,1.12291602,87918.0,87917.0,0.0003394]
[1742953006048,0.70113502,87918.0,87917.0,0.0003394]
[1742953008342,0.78253502,87918.0,87917.0,0.0003394]
[1742953012203,0.7647215,87918.0,87917.0,0.0003394]
[1742953016793,0.7825351,87918.0,87917.0,0.0003394]
[1742953021584,0.7011351,87918.0,87917.0,0.0003394]
[1742953024178,0.30011611,87918.0,87917.0,0.0003394]
[1742953024402,0.01149011,87918.0,87917.0,0.0003394]
[1742953024630,0.31149011,87918.0,87917.0,0.0003394]
[1742953024845,0.00011611,87918.0,87917.0,0.0003394]
[1742953025088,0.00011611,87918.0,87917.0,0.1404134]
[1742953025291,0.00011611,87918.0,87917.0,0.28391946]
[1742953025493,0.00011611,87918.0,87917.0,0.24972619]
[1742953026101,0.30011611,87918.0,87917.0,0.24972619]
[1742953027062,0.31149011,87918.0,87917.0,0.25072619]
[1742953027270,0.31149011,87918.0,87917.0,0.13646855]
[1742953027488,0.31149011,87918.0,87917.0,0.00676855]
[1742953027691,0.68100411,87918.0,87917.0,0.00676855]
[1742953027904,0.58500511,87918.0,87917.0,0.00876855]
[1742953028110,0.57251411,87918.0,87917.0,0.00876855]
[1742953028405,0.57251411,87918.0,87917.0,0.01076855]
[1742953028579,0.48540411,87918.0,87917.0,0.01076855]
[1742953035364,0.67854214,87918.0,87917.0,0.01076855]
[1742953035574,0.67854214,87918.0,87917.0,0.0023394]
[1742953036691,0.67854214,87918.0,87917.0,0.0033394]
[1742953036903,0.67854214,87918.0,87917.0,0.0013394]
[1742953037342,0.5642845,87918.0,87917.0,0.0033394]
[1742953037802,0.58209781,87918.0,87917.0,0.0013394]
[1742953038036,0.58309781,87918.0,87917.0,0.0003394]
[1742953038412,0.41018381,87918.0,87917.0,0.0003394]
[1742953038593,2.29558281,87918.0,87917.0,0.0003394]
[1742953041492,2.16656381,87918.0,87917.0,0.0003394]
[1742953042188,0.45566981,87918.0,87917.0,0.0003394]
[1742953042431,0.4970405,87918.0,87917.0,0.0003394]
[1742953042880,0.3149705,87918.0,87917.0,0.0003394]
[1742953043112,0.31249011,87918.0,87917.0,0.0003394]
[1742953043336,1.53203714,87918.0,87917.0,0.0003394]
[1742953043542,1.4177795,87918.0,87917.0,0.0003394]
[1742953043750,1.4167795,87918.0,87917.0,0.0003394]
[1742953045368,1.43459316,87918.0,87917.0,0.0003394]
[1742953049137,0.33078416,87918.0,87917.0,0.0003394]
[1742953049485,2.19229416,87918.0,87917.0,0.0003394]
[1742953051458,1.86829916,87918.0,87917.0,0.0003394]
[1742953052278,1.9825568,87918.0,87917.0,0.0003394]
[1742953052480,1.86829916,87918.0,87917.0,0.0003394]
[1742953053612,1.8504855,87918.0,87917.0,0.0003394]
[1742953056664,1.86829912,87918.0,87917.0,0.0003394]
[1742953059952,0.33078412,87918.0,87917.0,0.0003394]
[1742953060281,2.17126812,87918.0,87917.0,0.0003394]
[1742953062459,2.1534545,87918.0,87917.0,0.0003394]
[1742953064762,2.2824145,87918.0,87917.0,0.0003394]
[1742953064970,2.1684495,87918.0,87917.0,0.0003394]
[1742953065287,2.0313935,87918.0,87917.0,0.0003394]
[1742953065496,2.04920709,87918.0,87917.0,0.0003394]
[1742953071138,2.38411409,87918.0,87917.0,0.0003394]
[1742953072355,2.3502975,87918.0,87917.0,0.0003394]
[1742953072577,2.2399075,87918.0,87917.0,0.0003394]
[1742953074714,1.7288945,87918.0,87917.0,0.0003394]
[1742953074958,0.8249315,87918.0,87917.0,0.0003394]
[1742953075443,0.84274501,87918.0,87917.0,0.0003394]
[1742953075942,0.49400501,87918.0,87917.0,0.0003394]
[1742953076204,0.62320501,87918.0,87917.0,0.0003394]
[1742953081589,0.45998401,87918.0,87917.0,0.0003394]
[1742953082177,0.99837501,87918.0,87917.0,0.0003394]
[1742953082345,0.9805615,87918.0,87917.0,0.0003394]
[1742953083550,0.3129705,87918.0,87917.0,0.0003394]
[1742953085246,0.33078316,87918.0,87917.0,0.0003394]
[1742953093105,0.84114116,87918.0,87917.0,0.0003394]
[1742953093539,0.71660116,87918.0,87917.0,0.0003394]
[1742953094968,0.6516335,87918.0,87917.0,0.0003394]
[1742953095627,0.6058655,87918.0,87917.0,0.0003394]
[1742953095846,0.31149011,87918.0,87917.0,0.0003394]
[1742953097475,0.3129705,87918.0,87917.0,0.0003394]
[1742953097680,0.31149011,87918.0,87917.0,0.0003394]
[1742953097883,0.00011611,87918.0,87917.0,0.60539704]
[1742953098176,0.53897411,87918.0,87917.0,0.41736597]
[1742953098788,0.53897411,87918.0,87917.0,0.41836597]
[1742953099194,0.53897411,87918.0,87917.0,0.41736597]
[1742953099646,0.53897411,87918.0,87917.0,0.41936597]
[1742953100106,0.53897411,87918.0,87917.0,0.42136597]
[1742953104998,0.53524411,87918.0,87917.0,0.42136597]
[1742953114382,0.3,87918.0,87917.0,0.48648631]
[1742953114550,0.3,87918.0,87917.0,0.71397331]
[1742953114962,0.3,87918.0,87917.0,0.60074395]
[1742953115922,0.3,87918.0,87917.0,0.67584395]
[1742953116092,0.3,87918.0,87917.0,0.68650371]
[1742953117444,0.0001697,87933.0,87929.0,0.227453]
[1742953117659,0.0001697,87933.0,87930.0,0.227451]
[1742953118687,0.0011697,87932.0,87930.0,0.227451]
[1742953119304,0.0001697,87932.0,87930.0,0.227451]
[1742953119474,0.0001697,87932.0,87930.0,0.229451]
[1742953119871,0.0001697,87932.0,87931.0,0.01065976]
[1742953120089,0.0001697,87932.0,87931.0,0.62887927]
[1742953120426,0.0001697,87932.0,87931.0,0.75677927]
[1742953120773,0.0001697,87932.0,87931.0,0.88505927]
[1742953121258,0.0001697,87932.0,87931.0,0.91357888]
[1742953121485,0.0001697,87932.0,87931.0,0.91657888]
[1742953121677,0.0001697,87932.0,87931.0,0.91357888]
[1742953121880,0.0001697,87932.0,87931.0,0.92811973]
[1742953121998,0.0001697,87932.0,87931.0,0.93411973]
[1742953122420,0.0001697,87932.0,87931.0,0.92811973]
[1742953123044,0.0001697,87932.0,87931.0,0.93311973]
[1742953123246,0.0001697,87932.0,87931.0,0.92811973]
[1742953123608,0.0001697,87932.0,87931.0,0.93411973]
[1742953124555,0.0001697,87932.0,87931.0,0.94011973]
[1742953124760,0.0001697,87932.0,87931.0,0.96304846]
[1742953124956,0.0001697,87932.0,87931.0,0.95704846]
[1742953125426,0.0001697,87932.0,87931.0,0.96304846]
[1742953126166,0.0001697,87948.0,87947.0,0.01137]
[1742953126371,0.00028602,87948.0,87947.0,0.53588824]
[1742953127198,0.00028602,87948.0,87947.0,0.52451824]
[1742953127406,0.31165602,87948.0,87947.0,0.4102606]
[1742953127794,0.31165602,87948.0,87947.0,0.4152606]
[1742953128757,0.31165602,87948.0,87947.0,0.4212606]
[1742953129090,0.31165602,87948.0,87947.0,0.4152606]
[1742953129288,0.31165602,87948.0,87947.0,0.4102606]
[1742953129492,0.31165602,87948.0,87947.0,0.4142606]
[1742953129721,0.31165602,87948.0,87947.0,0.4172606]
[1742953132681,0.31165602,87948.0,87947.0,0.007]
[1742953132887,0.38945602,87948.0,87947.0,0.007]
[1742953133090,0.43535602,87948.0,87947.0,0.007]
[1742953134385,0.43535602,87948.0,87947.0,0.004]
[1742953134580,0.43535602,87948.0,87947.0,0.002]
[1742953134919,0.43535602,87948.0,87947.0,0.004]
[1742953136664,0.4531623,87948.0,87947.0,0.004]
[1742953142343,1.93516105,87948.0,87947.0,0.004]
[1742953142530,1.37165041,87948.0,87947.0,0.004]
[1742953142729,1.32967541,87948.0,87947.0,0.004]
[1742953143492,1.32967541,87948.0,87947.0,0.002]
[1742953143702,1.33167541,87948.0,87947.0,0.002]
[1742953144058,1.32967541,87948.0,87947.0,0.002]
[1742953144259,0.011372,87934.0,87933.0,0.0003392]
[1742953144663,0.538815,87934.0,87933.0,0.0003392]
[1742953145493,0.538815,87934.0,87933.0,0.0013392]
[1742953145694,0.55662326,87934.0,87933.0,0.0013392]
[1742953145897,0.55662326,87934.0,87933.0,0.0023392]
[1742953150314,1.98558965,87934.0,87933.0,0.0023392]
[1742953150513,2.02890365,87934.0,87933.0,0.0023392]
[1742953150832,1.36607065,87934.0,87933.0,0.0023392]
[1742953151369,1.36607065,87934.0,87933.0,0.0013392]
[1742953151609,1.49483065,87934.0,87933.0,0.0013392]
[1742953152051,1.49483065,87934.0,87933.0,0.0003392]
[1742953152260,1.47702239,87934.0,87933.0,0.0003392]
[1742953152460,1.47802239,87934.0,87933.0,0.0003392]
[1742953155355,1.49583279,87934.0,87933.0,0.0003392]
[1742953159835,0.73456579,87934.0,87933.0,0.0003392]
[1742953160033,1.72014379,87934.0,87933.0,0.0003392]
[1742953161005,1.56568739,87934.0,87933.0,0.0003392]
[1742953162150,1.75734503,87934.0,87933.0,0.0003392]
[1742953162357,1.62527699,87934.0,87933.0,0.0003392]
[1742953164368,1.63981784,87934.0,87933.0,2e-07]
[1742953164524,0.80886584,87934.0,87933.0,2e-07]
[1742953165626,0.82667801,87934.0,87933.0,2e-07]
[1742953165825,0.82567801,87934.0,87933.0,2e-07]
[1742953166228,0.94193565,87934.0,87933.0,2e-07]
[1742953166698,0.94493565,87934.0,87933.0,2e-07]
[1742953169092,0.83067801,87934.0,87933.0,2e-07]
[1742953172424,0.81286584,87934.0,87933.0,2e-07]
[1742953176654,0.83067847,87934.0,87933.0,2e-07]
[1742953179170,0.68837762,87934.0,87933.0,2e-07]
[1742953179374,0.81593762,87934.0,87933.0,2e-07]
[1742953181641,0.80263526,87934.0,87933.0,2e-07]
[1742953181827,0.93019526,87934.0,87933.0,2e-07]
[1742953182390,0.91238263,87934.0,87933.0,2e-07]
[1742953183320,0.78482263,87934.0,87933.0,2e-07]
[1742953183517,0.91238263,87934.0,87933.0,2e-07]
[1742953186725,0.93019502,87934.0,87933.0,2e-07]
[1742953186927,0.94473587,87934.0,87933.0,2e-07]
[1742953191881,0.92692348,87934.0,87933.0,2e-07]
[1742953192782,0.92392348,87934.0,87933.0,2e-07]
[1742953192991,0.92092348,87934.0,87933.0,2e-07]
[1742953193398,0.92492348,87934.0,87933.0,2e-07]
[1742953194025,0.92892348,87934.0,87933.0,2e-07]
[1742953195266,0.9467365,87934.0,87933.0,2e-07]
[1742953196476,0.83247886,87934.0,87933.0,2e-07]
[1742953202316,0.81466584,87934.0,87933.0,2e-07]
[1742953206674,0.83247844,87934.0,87933.0,2e-07]
[1742953211042,0.5647972,87934.0,87933.0,2e-07]
[1742953211245,0.56627759,87934.0,87933.0,2e-07]
[1742953211450,0.26627759,87934.0,87933.0,2e-07]
[1742953211631,0.24846499,87934.0,87933.0,0.0803002]
[1742953212045,0.54446499,87934.0,87933.0,0.0803002]
[1742953212292,0.24446499,87934.0,87933.0,0.0803002]
[1742953212430,0.24646499,87934.0,87933.0,0.0803002]
[1742953212632,0.24446499,87934.0,87933.0,0.0803002]
[1742953212836,0.54046499,87934.0,87933.0,0.0803002]
[1742953213046,0.54046499,87934.0,87933.0,0.0823002]
[1742953213463,0.54346499,87934.0,87933.0,0.0823002]
[1742953213865,0.54046499,87934.0,87933.0,0.0823002]
[1742953214290,0.54046499,87934.0,87933.0,0.0853002]
[1742953217715,0.55827469,87934.0,87933.0,0.0853002]
[1742953220755,0.67253233,87934.0,87933.0,0.0050002]
[1742953220928,2.88487833,87934.0,87933.0,0.0050002]
[1742953221525,2.77062069,87934.0,87933.0,0.0050002]
[1742953221730,1.85470269,87934.0,87933.0,0.0050002]
[1742953222173,0.55827469,87934.0,87933.0,0.0050002]
[1742953222375,1.96829399,87934.0,87933.0,0.0050002]
[1742953222577,1.96829399,87934.0,87933.0,0.0030002]
[1742953222715,1.96829399,87934.0,87933.0,2e-07]
[1742953222927,0.65472263,87934.0,87933.0,0.0010002]
[1742953223135,0.54046499,87934.0,87933.0,0.0020002]
[1742953223554,0.66802499,87934.0,87933.0,0.0020002]
[1742953223963,2.20074799,87934.0,87933.0,0.0020002]
[1742953224166,2.14388499,87934.0,87933.0,0.0020002]
[1742953225036,2.10097499,87934.0,87933.0,0.0020002]
[1742953225415,2.11878632,87934.0,87933.0,0.0020002]
[1742953226143,2.23304396,87934.0,87933.0,0.0020002]
[1742953229199,2.11878632,87934.0,87933.0,0.0020002]
[1742953229819,1.99231832,87934.0,87933.0,0.0020002]
[1742953229975,1.88892932,87934.0,87933.0,0.0020002]
[1742953231303,1.87755732,87934.0,87933.0,0.0020002]
[1742953231644,1.65011432,87934.0,87933.0,0.0020002]
[1742953231821,1.76437196,87934.0,87933.0,0.0020002]
[1742953232027,1.76437196,87934.0,87933.0,2e-07]
[1742953232229,0.54546763,87934.0,87933.0,2e-07]
[1742953232427,0.43120999,87934.0,87933.0,2e-07]
[1742953233074,0.43220999,87934.0,87933.0,2e-07]
[1742953233205,0.43020999,87934.0,87933.0,2e-07]
[1742953233884,0.43120999,87934.0,87933.0,2e-07]